[Event "87th Tata Steel Masters 2025"]
[White "Warmerdam,Max"]
[Black "Abdusattorov,Nodirbek"]
[Site "Wijk aan Zee"]
[Round "3.5"]
[Annotator "TA"]
[Result "0-1"]
[Date "2025.01.20"]
[WhiteElo "2646"]
[BlackElo "2768"]
[PlyCount "114"]
[TimeControl "60"]

{[%evp 43,114,0,0,-7,0,-4,0,0,0,0,0,0,0,0,0,0,0,0,0,0,0,0,9,11,15,10,7,-44,-40,-56,-43,-59,-61,-70,-27,-53,-48,-101,-101,-106,-92,-102,-104,-159,-169,-155,-146,-164,-126,-172,-156,-186,-43,-37,-27,-38,-34,-33,0,-29,-34,-169,-143,-194,-200,-264,-252,-296,-307,-310,-300,-1838,-1791]} 1. e4 {[%emt 0:0:3]} e5 {[%emt 0:0:31]} 2. Nf3 {[%emt 0:0:7]} Nc6 {[%emt 0:0:12]} 3. Bb5 {[%emt 0:0:6]} a6 {[%emt 0:0:39]} 4. Ba4 {[%emt 0:0:5]} Nf6 {[%emt 0:0:15]} 5. d3 {[%emt 0:0:16]} Bc5 {[%emt 0:1:7]} 6. c3 {[%emt 0:0:35]} d6 {[%emt 0:3:36]} 7. O-O {[%emt 0:0:18]} O-O {[%emt 0:0:42]} 8. h3 {[%emt 0:0:13]} Ba7 {[%emt 0:3:41]} 9. Re1 {[%emt 0:1:10]} Ne7 {[%emt 0:5:30]} 10. d4 {[%emt 0:10:3]} Ng6 {[%emt 0:0:49]} 11. Bc2 {[%emt 0:5:12]} Bd7 {[%emt 0:9:4]} 12. Be3 {[%emt 0:6:49]} Re8 {[%emt 0:2:0]} 13. Nbd2 {[%emt 0:0:30]} a5 {[%emt 0:1:10]} 14. a4 {[%emt 0:2:53]} Bc6 {[%emt 0:0:37]} 15. Qb1 {[%emt 0:8:42]} Qe7 {[%emt 0:6:7]} 16. dxe5 {[%emt 0:18:33]} dxe5 {[%emt 0:1:2]} 17. Bxa7 {[%emt 0:0:20]} Rxa7 {[%emt 0:0:6]} 18. Bd3 {[%emt 0:0:35]} Nf8 {[%emt 0:6:7]} 19. Nc4 {[%emt 0:11:50]} N8d7 {[%emt 0:0:36]} 20. Qc2 {[%emt 0:0:49]} g6 {[%emt 0:3:7]} 21. b3 {[%emt 0:0:45]} b6 {[%emt 0:3:20]} 22. Rad1 {[%emt 0:5:59]} Raa8 {[%emt 0:1:22]} 23. Qb2 {[%emt 0:1:53]} Nh5 {[%emt 0:5:17]} 24. Ne3 {[%emt 0:11:36]} Rad8 {[%emt 0:6:48]} 25. Bc2 {[%emt 0:10:53]} Nhf6 {[%emt 0:4:12]} 26. Nc4 {[%emt 0:0:45]} Kg7 {[%emt 0:2:21]} 27. b4 {[%emt 0:1:21]} Ra8 {[%emt 0:0:37]} 28. Ra1 {[%emt 0:1:46]} h6 {[%emt 0:3:59]} 29. Re3 {[%emt 0:1:39]} Nh7 {[%emt 0:1:36]} 30. Nfd2 {[%emt 0:3:22]} Ra7 {[%emt 0:1:30]} 31. Ree1 {[%emt 0:1:17]} Ng5 {[%emt 0:1:54]} 32. Ne3 {[%emt 0:1:35]} Nf6 {[%emt 0:6:4]} 33. b5 {[%emt 0:0:5]} Bb7 {[%emt 0:0:28]} (33... Bxe4 $6 34. h4 $16 )(33... Ngxe4 34. bxc6 Nxd2 35. Rad1 $18 (35. Bxg6 fxg6 36. Qxd2 Raa8 $11 ))(33... Nfxe4 $6 34. Bxe4 Bxe4 35. h4 Bxg2 36. Nxg2 (36. Kxg2 Ne6 $14 )(36. hxg5 Bb7 $16 )Nh3+ 37. Kf1 $18 )34. c4 {[%emt 0:0:15]} Nd7 {[%emt 0:5:7]} (34... Bxe4 $2 35. Bxe4 Qb4 36. Qxb4 axb4 37. Bc6 $18 )35. Nd5 {[%emt 0:0:16]} (35. Ra3 $11 )Nxh3+ {[%emt 0:0:38]} 36. Kf1 {[%emt 0:1:45]} Bxd5 {[%emt 0:2:7]} 37. cxd5 {[%emt 0:0:5]} Ng5 {[%emt 0:1:58]} 38. Ra3 {[%emt 0:1:26]} f6 {[%emt 0:1:31]} 39. Ke2 {[%emt 0:1:12]} Nc5 {[%emt 0:2:7]} 40. Kd1 {[%emt 0:0:44]} (40. Kf1 $15 )Raa8 $17 {[%emt 0:0:47]} 41. Kc1 {[%emt 0:3:52]} Rad8 {[%emt 0:2:7]} 42. g3 {[%emt 0:16:23]} Nf7 {[%emt 0:2:6]} 43. f4 {[%emt 0:0:39]} ({Better is} 43. Kb1 )exf4 $17 {[%emt 0:0:32]} 44. gxf4 {[%emt 0:0:45]} Rxd5 $1 {[%emt 0:0:6]} 45. Nf3 {[%emt 0:5:46]} Rh5 {[%emt 0:5:42]} 46. e5 {[%emt 0:18:46]} (46. Rae3 $17 )fxe5 $19 {[%emt 0:13:39]} 47. Rae3 {[%emt 0:1:21]} Nd7 {[%emt 0:7:5]} (47... Qf6 $19 48. fxe5 Qe6 )48. fxe5 $1 $15 {[%emt 0:4:38]} Nfxe5 {[%emt 0:7:31]} 49. Rd1 $1 {[%emt 0:2:38]} Nf6 {[%emt 0:3:54]} 50. Rde1 $1 {[%emt 0:0:57]} (50. Nxe5 $2 Rxe5 51. Rc3 Rc5 $19 )Nfd7 {[%emt 0:4:4]} 51. Rd1 $1 {[%emt 0:0:4]} Kh7 {[%emt 0:1:37]} 52. Qc3 {[%emt 0:0:35] [#]} ({White must play} 52. Kb1 $15 )Nf6 $1 $19 {[%emt 0:2:26]} 53. Rg1 {[%emt 0:1:46] [#]} (53. Nxe5 $2 Rxe5 54. Qxe5 Qxe5 $19 )(53. Re2 $17 {might work better.} )Nd5 $1 $19 {[%emt 0:1:15]} 54. Bxg6+ {[%emt 0:0:12]} Kh8 {[%emt 0:3:8]} ({Inferior is} 54... Nxg6 55. Rxe7+ Rxe7 56. Qc6 $11 )55. Qd4 {[%emt 0:1:0]} Nxe3 {[%emt 0:1:8]} 56. Bxh5 {[%emt 0:0:6]} Qa3+ {[%emt 0:0:39]} 57. Kd2 $2 {[%emt 0:0:1]} (57. Qb2 Qxb2+ (57... Qxa4 $2 {too greedy.} 58. Nxe5 $18 )58. Kxb2 Nd3+ 59. Kc3 )Nf5 {[%emt 0:0:45]} 0-1

[Event "87th Tata Steel Masters 2025"]
[White "Giri,Anish"]
[Black "Fedoseev,Vladimir"]
[Site "Wijk aan Zee"]
[Round "3.6"]
[Annotator "TA"]
[Result "1/2-1/2"]
[Date "2025.01.20"]
[WhiteElo "2731"]
[BlackElo "2717"]
[PlyCount "60"]
[TimeControl "60"]

{[%evp 13,60,30,39,26,43,22,38,35,39,33,39,35,27,32,34,24,30,3,15,3,26,11,8,5,5,0,8,10,14,29,25,6,8,8,10,8,14,7,13,0,0,0,0,0,0,0,0,0,0]} 1. e4 {[%emt 0:0:10]} e5 {[%emt 0:0:22]} 2. Bc4 {[%emt 0:0:9]} Nf6 {[%emt 0:0:19]} 3. d3 {[%emt 0:0:5]} Nc6 {[%emt 0:4:11]} 4. Nf3 {[%emt 0:0:24]} Be7 {[%emt 0:0:7]} 5. O-O {[%emt 0:1:1]} d6 {[%emt 0:0:39]} 6. a4 {[%emt 0:2:14]} O-O {[%emt 0:0:38]} 7. Re1 {[%emt 0:2:55]} h6 {[%emt 0:6:5]} 8. a5 {[%emt 0:5:56]} Rb8 {[%emt 0:4:54]} 9. h3 {[%emt 0:13:33]} Re8 {[%emt 0:7:47][%cal Yf8e8,Ye8e6,Ye6f6][%mdl 32]} 10. Nc3 {[%emt 0:1:56]} a6 {[%emt 0:6:38]} 11. Bd2 {[%emt 0:5:38]} Bf8 {[%emt 0:2:4]} 12. Qb1 {[%emt 0:15:20]} Be6 {[%emt 0:10:58]} 13. Bxe6 {[%emt 0:0:31]} Rxe6 {[%emt 0:0:5]} 14. Nd5 {[%emt 0:0:31]} Ne7 {[%emt 0:4:55]} 15. Nxf6+ {[%emt 0:7:55]} Rxf6 {[%emt 0:0:6]} 16. Qd1 {[%emt 0:0:52]} Ng6 {[%emt 0:9:7]} 17. d4 {[%emt 0:1:19]} exd4 {[%emt 0:7:9]} 18. Nxd4 {[%emt 0:0:16][%cal Yf3d4,Yd4f5,Yf5e3,Ye3g4][%mdl 32]} c5 {[%emt 0:4:53]} 19. Nf5 {[%emt 0:8:28]} d5 {[%emt 0:1:26]} 20. Qg4 {[%emt 0:7:3]} Qc8 {[%emt 0:0:17]} 21. Ne3 {[%emt 0:8:4]} Qxg4 {[%emt 0:9:28]} 22. Nxg4 {[%emt 0:0:38]} Rd6 {[%emt 0:0:4]} 23. exd5 {[%emt 0:2:27]} Rxd5 {[%emt 0:0:6]} 24. Bc3 {[%emt 0:1:5]} Rbd8 {[%emt 0:0:11]} 25. Ne3 {[%emt 0:3:14]} R5d7 {[%emt 0:0:6]} 26. Nc4 {[%emt 0:0:12]} f6 {[%emt 0:3:49]} 27. g3 {[%emt 0:0:39]} Ne7 {[%emt 0:4:7]} 28. Nb6 {[%emt 0:0:7]} Rd6 {[%emt 0:0:5]} 29. Nc4 {[%emt 0:0:3]} R6d7 {[%emt 0:0:5]} 30. Nb6 {[%emt 0:0:52]} Rd6 {[%emt 0:0:2]} 1/2-1/2

[Event "87th Tata Steel Masters 2025"]
[White "Mendonca,Leon Luke"]
[Black "Harikrishna,Pentala"]
[Site "Wijk aan Zee"]
[Round "3.7"]
[Annotator "TA"]
[Result "1/2-1/2"]
[Date "2025.01.20"]
[WhiteElo "2639"]
[BlackElo "2695"]
[PlyCount "88"]
[TimeControl "60"]

{[%evp 12,88,5,-2,8,14,4,21,15,18,16,3,13,4,21,17,35,18,30,35,32,19,41,30,40,30,41,31,33,22,25,7,25,16,13,7,14,0,0,0,0,0,0,0,5,0,0,0,0,0,0,0,9,0,0,0,0,-6,0,0,14,9,12,12,20,0,0,0,0,0,0,0,0,0,0,0,0,0,0]} 1. d4 {[%emt 0:0:43]} Nf6 {[%emt 0:0:11]} 2. c4 {[%emt 0:0:9]} e6 {[%emt 0:0:8]} 3. Nc3 {[%emt 0:1:12]} Bb4 {[%emt 0:0:9]} 4. Nf3 {[%emt 0:0:7]} b6 {[%emt 0:2:46]} 5. e3 {[%emt 0:0:51]} O-O {[%emt 0:1:5]} 6. Bd3 {[%emt 0:0:42]} d5 {[%emt 0:0:43]} 7. O-O {[%emt 0:2:30]} Ba6 {[%emt 0:8:35]} 8. cxd5 {[%emt 0:0:59]} exd5 {[%emt 0:4:56]} 9. Bxa6 {[%emt 0:0:28]} Nxa6 {[%emt 0:0:7][%cal Yb8a6,Ya6c5,Yc5e4][%mdl 32]} 10. Qa4 {[%emt 0:0:38]} Qc8 {[%emt 0:0:9]} 11. Bd2 {[%emt 0:0:34]} Re8 {[%emt 0:0:38]} 12. Rfc1 {[%emt 0:3:15]} Bf8 {[%emt 0:7:49]} 13. Ne2 {[%emt 0:4:21]} c5 {[%emt 0:4:14]} 14. dxc5 {[%emt 0:9:7]} Nxc5 {[%emt 0:2:1]} 15. Qd1 {[%emt 0:6:21]} Qb7 {[%emt 0:4:28]} 16. Bc3 {[%emt 0:3:45] and Bxf6 should not be overlooked} Nce4 {[%emt 0:1:14]} 17. Bxf6 {[%emt 0:7:44]} Nxf6 {[%emt 0:0:7]} 18. Rc2 {[%emt 0:1:11]} Rac8 {[%emt 0:3:0]} 19. Rac1 {[%emt 0:2:26]} Rc5 {[%emt 0:0:31]} 20. Nfd4 {[%emt 0:14:21]} Rec8 {[%emt 0:5:37]} 21. Nc3 {[%emt 0:0:7]} Ne4 {[%emt 0:11:15]} 22. Nb3 {[%emt 0:10:27] A dynamic duo of knights.} R5c7 {[%emt 0:0:22]} 23. Nxe4 {[%emt 0:0:29]} dxe4 {[%emt 0:0:10]} 24. Rd2 {[%emt 0:1:9]} g6 {[%emt 0:8:6]} 25. g3 {[%emt 0:2:28]} Be7 {[%emt 0:1:57]} 26. Rxc7 {[%emt 0:4:4]} Rxc7 {[%emt 0:1:9]} 27. Nd4 {[%emt 0:1:23]} Bb4 {[%emt 0:7:56]} 28. Rc2 {[%emt 0:1:33]} Rd7 {[%emt 0:3:16]} 29. Qe2 {[%emt 0:2:59]} Bc5 {[%emt 0:1:22]} 30. Nb3 {[%emt 0:1:20]} Be7 {[%emt 0:0:40]} 31. Qc4 {[%emt 0:4:21]} Kg7 {[%emt 0:4:41]} 32. Nd4 {[%emt 0:2:57]} Bc5 {[%emt 0:1:38]} 33. Nb3 {[%emt 0:2:32]} Be7 {[%emt 0:0:21]} 34. Nd4 {[%emt 0:2:18][%cal Yb3d4,Yd4b5,Yb5c3,Yc3e2,Ye2f4,Yf4e6][%mdl 32]} Bc5 {[%emt 0:0:10]} 35. Nb5 {[%emt 0:0:17]} a5 {[%emt 0:7:44]} 36. Nc3 {[%emt 0:1:59]} f5 {[%emt 0:1:15]} 37. Kg2 {[%emt 0:3:24]} Be7 {[%emt 0:3:18]} 38. Ne2 {[%emt 0:2:37]} Qd5 {[%emt 0:0:52]} (38... Rd6 {simplifies} 39. Nd4 Qd7 40. Qc7 Qxc7 41. Rxc7 Kf8 )39. Qc8 {[%emt 0:4:14] Prevents Qxc4.} Bc5 {[%emt 0:2:52]} 40. Nf4 {[%emt 0:1:56]} Qd1 {[%emt 0:3:50]} 41. Ne6+ {[%emt 0:10:24]} Kh6 {[%emt 0:3:1]} 42. Rxc5 {[%emt 0:1:46]} Qf3+ {[%emt 0:0:33]} 43. Kh3 {[%emt 0:0:8]} Qg4+ {[%emt 0:0:33]} 44. Kg2 {[%emt 0:0:7]} Qf3+ {[%emt 0:0:4]} 1/2-1/2

[Event "87th Tata Steel Masters 2025"]
[White "Harikrishna,Pentala"]
[Black "Warmerdam,Max"]
[Site "Wijk aan Zee"]
[Round "4.1"]
[Annotator "TA"]
[Result "1-0"]
[Date "2025.01.21"]
[WhiteElo "2695"]
[BlackElo "2646"]
[PlyCount "45"]
[TimeControl "60"]

{[%evp 16,45,30,28,58,47,41,33,30,33,29,22,11,9,13,22,24,25,15,0,0,-14,-16,-10,0,0,93,6,412,413,631,618]} 1. Nf3 {[%emt 0:0:7]} d5 {[%emt 0:0:8]} 2. g3 {[%emt 0:0:17]} c5 {[%emt 0:0:7]} 3. Bg2 {[%emt 0:0:28]} Nc6 {[%emt 0:0:7]} 4. d4 {[%emt 0:0:26]} Nf6 {[%emt 0:0:14]} 5. O-O {[%emt 0:0:24]} e6 {[%emt 0:0:6]} 6. c4 {[%emt 0:4:54]} dxc4 {[%emt 0:0:12]} 7. dxc5 {[%emt 0:1:15]} Qxd1 {[%emt 0:0:7]} 8. Rxd1 {[%emt 0:0:5]} Bxc5 {[%emt 0:0:5]} 9. Nbd2 {[%emt 0:0:48]} b5 {[%emt 0:0:6]} 10. a4 {[%emt 0:6:3]} Ba6 {[%emt 0:0:26]} 11. Ng5 {[%emt 0:4:4]} (11. Ne5 $5 Nxe5 12. axb5 $11 (12. Bxa8 b4 $11 ))Nd5 {[%emt 0:2:13]} 12. Nde4 {[%emt 0:1:22][%cal Yd2e4,Ye4g5,Yg5e6,Ye6d4,Yd4c6,Yc6e5][%mdl 32] Inhibits b4.} Bb4 $1 {[%emt 0:0:21] [#]} 13. Nxf7 $1 {[%emt 0:13:8]} Kxf7 {[%emt 0:0:15]} 14. Ng5+ {[%emt 0:0:6]} Kf6 $1 {[%emt 0:0:5] [#]} 15. Nxe6 $1 {[%emt 0:7:24]} Nce7 $1 {[%emt 0:3:1]} 16. axb5 {[%emt 0:6:38]} (16. Bxd5 Nxd5 17. axb5 Bb7 $19 )Bb7 {[%emt 0:1:41]} 17. Nd4 $36 {[%emt 0:9:2][%mdl 2048] White is pushing.} Kf7 {[%emt 0:45:54]} 18. Ra4 {[%emt 0:13:41]} c3 {[%emt 0:12:43]} 19. Rd3 {[%emt 0:12:30]} (19. Rxb4 Nxb4 20. Bxb7 c2 21. Nxc2 Nxc2 22. Bxa8 Rxa8 )a5 {[%emt 0:22:2]} 20. bxc3 $1 {[%emt 0:2:39]} Bxc3 {[%emt 0:1:14] [#]} (20... Nxc3 $2 21. Bxb7 Rab8 (21... Nxa4 $2 22. Rf3+ Ke8 23. Bxa8 $18 )22. Rf3+ Ke8 23. Rxc3 Bxc3 24. Ba6 $18 )(20... Rac8 $1 $11 {keeps the balance.} )21. Rf3+ {[%emt 0:11:37]} ({White should play} 21. Nc6 $1 $16 {[%cal Rc6e7] Nxe7 is the strong threat.} Nb6 22. Rf4+ Bf6 23. Ne5+ Ke8 24. Bxb7 Bxe5 25. Re4 )Kg6 $2 {[%emt 0:1:2][%mdl 8192] [#]} (21... Ke8 $11 )22. Nc6 $1 $18 {[%emt 0:1:8] Intending Rg4+ and mate.} Bf6 {[%emt 0:6:43] [#]} ({Wrong is} 22... Bxc6 $2 23. Rg4+ Kh5 24. Rg5+ Kh6 25. Rxd5+ g5 26. Rd6+ (26. Bxg5+ Kg7 $18 )Ng6 27. bxc6 $18 (27. Rxc6 Be5 $18 ))(22... h5 $142 23. Nxe7+ Nxe7 )23. Ne5+ $1 {[%emt 0:1:0][%mdl 512]} 1-0

[Event "87th Tata Steel Masters 2025"]
[White "Caruana,Fabiano"]
[Black "Giri,Anish"]
[Site "Wijk aan Zee"]
[Round "4.2"]
[Annotator "TA"]
[Result "1/2-1/2"]
[Date "2025.01.21"]
[WhiteElo "2803"]
[BlackElo "2731"]
[PlyCount "68"]
[TimeControl "60"]

{[%evp 22,68,31,31,27,39,31,0,0,-7,0,0,0,0,0,-33,-20,-14,-33,-16,-35,-40,-1,-21,0,-11,-3,-46,-18,-25,-39,-42,-18,-34,-27,-39,-11,-20,0,0,0,0,0,0,0,0,0,0,0]} 1. e4 {[%emt 0:0:6]} c5 {[%emt 0:0:4]} 2. Nf3 {[%emt 0:0:4]} Nc6 {[%emt 0:0:5]} 3. Bb5 {[%emt 0:0:16]} g6 {[%emt 0:0:6]} 4. O-O {[%emt 0:1:48]} Bg7 {[%emt 0:0:8]} 5. Re1 {[%emt 0:0:6]} e5 {[%emt 0:0:4]} 6. Bxc6 {[%emt 0:0:11]} bxc6 {[%emt 0:0:5]} 7. c3 {[%emt 0:1:25]} Ne7 {[%emt 0:0:28]} 8. d4 {[%emt 0:0:5]} cxd4 {[%emt 0:0:4]} 9. cxd4 {[%emt 0:0:3]} exd4 {[%emt 0:0:3]} 10. Nxd4 {[%emt 0:0:5]} O-O {[%emt 0:0:5]} 11. Nc3 {[%emt 0:0:29]} Rb8 {[%emt 0:0:18][%cal Ya8b8,Yb8b5,Yb5g5,Yg5f5][%mdl 32]} 12. Nb3 {[%emt 0:5:51]} Qc7 {[%emt 0:1:0] Against Qd6} 13. Bg5 {[%emt 0:1:41]} d6 {[%emt 0:0:25]} 14. Rc1 {[%emt 0:14:52]} Be6 {[%emt 0:2:14]} 15. Nd5 {[%emt 0:3:38]} Nxd5 {[%emt 0:0:10]} (15... cxd5 $2 16. Rxc7 Nc8 17. exd5 $18 )16. exd5 {[%emt 0:0:3]} Rb5 $1 {[%emt 0:0:4]} (16... Bxd5 $2 {is the wrong capture.} 17. Qxd5 Rfc8 18. Qf3 $18 )17. dxe6 {[%emt 0:28:1]} ({Don't play} 17. Rxc6 Qd7 18. h4 Rxd5 $17 (18... Bxb2 19. dxe6 Qxc6 20. Bh6 $11 ))Rxg5 {[%emt 0:0:11]} 18. Qd2 {[%emt 0:5:19]} Rf5 {[%emt 0:7:13]} 19. exf7+ {[%emt 0:0:41]} Qxf7 {[%emt 0:14:39][%cal Rf5f2]} 20. Re2 {[%emt 0:0:44]} c5 {[%emt 0:5:42][%cal Ya7a5]} 21. g3 {[%emt 0:3:19][%cal Yc1c2]} Rd5 {[%emt 0:25:52]} 22. Qc2 {[%emt 0:4:30]} Re5 {[%emt 0:0:16]} 23. Rxe5 {[%emt 0:14:7]} Bxe5 {[%emt 0:0:11]} 24. Re1 {[%emt 0:0:3]} Rb8 {[%emt 0:13:33]} 25. Qd2 {[%emt 0:7:37]} Rb6 {[%emt 0:5:16]} 26. h4 {[%emt 0:8:31][%cal Yh4h5]} Bf6 {[%emt 0:4:42]} 27. Rd1 {[%emt 0:5:34]} Kg7 {[%emt 0:1:12]} 28. Re1 {[%emt 0:2:48][%cal Yd1e1,Ye1e4,Ye4a4][%mdl 32]} h6 {[%emt 0:1:17]} 29. Re4 {[%emt 0:0:28]} g5 {[%emt 0:3:36]} 30. hxg5 {[%emt 0:0:40]} hxg5 {[%emt 0:0:2]} 31. Ra4 {[%emt 0:1:21]} Kg8 {[%emt 0:2:43]} 32. Qc2 {[%emt 0:0:58]} Rb8 {[%emt 0:1:16]} 33. Qf5 {[%emt 0:0:18]} Be7 {[%emt 0:5:30]} 34. Qc2 {[%emt 0:0:39]} Bf6 {[%emt 0:0:18]} 1/2-1/2

[Event "87th Tata Steel Masters 2025"]
[White "Sarana,Alexey"]
[Black "Gukesh,Dommaraju"]
[Site "Wijk aan Zee"]
[Round "4.3"]
[Annotator "TA"]
[Result "1/2-1/2"]
[Date "2025.01.21"]
[WhiteElo "2677"]
[BlackElo "2777"]
[PlyCount "139"]
[TimeControl "60"]

{[%evp 53,139,-35,-13,-40,-46,-64,0,0,-19,-15,-16,-16,-16,-22,0,0,0,0,0,0,0,0,0,0,0,0,20,16,26,16,14,0,27,28,90,90,143,135,139,95,123,70,105,47,59,60,60,60,60,59,80,0,0,0,68,68,68,19,68,68,68,68,125,148,66,0,187,68,68,8,8,8,8,8,8,8,8,8,8,8,8,8,8,8,8,0,0,0]} 1. d4 {[%emt 0:0:2]} d5 {[%emt 0:0:7]} 2. c4 {[%emt 0:0:27]} e6 {[%emt 0:0:6]} 3. Nf3 {[%emt 0:0:34]} Nf6 {[%emt 0:0:45]} 4. Nc3 {[%emt 0:0:17]} Be7 {[%emt 0:0:47]} 5. g3 {[%emt 0:4:48]} O-O {[%emt 0:5:6]} 6. Bg2 {[%emt 0:0:13]} Nc6 {[%emt 0:1:14]} 7. Ne5 {[%emt 0:6:56]} Nxe5 {[%emt 0:3:6]} 8. dxe5 {[%emt 0:0:2]} Nd7 {[%emt 0:0:7]} 9. cxd5 {[%emt 0:1:31]} Nxe5 {[%emt 0:0:7]} 10. dxe6 {[%emt 0:6:51]} Bxe6 {[%emt 0:5:12]} 11. Bxb7 {[%emt 0:2:0]} Rb8 {[%emt 0:9:34]} 12. Bg2 {[%emt 0:2:28]} Qxd1+ {[%emt 0:1:29]} 13. Nxd1 {[%emt 0:10:17]} Nc4 {[%emt 0:10:10]} 14. O-O {[%emt 0:4:25]} Bf6 {[%emt 0:4:19]} 15. Nc3 {[%emt 0:3:4]} Rfd8 {[%emt 0:14:8]} 16. Ne4 {[%emt 0:7:19]} Bxb2 {[%emt 0:2:40]} 17. Bxb2 {[%emt 0:2:31]} Rxb2 {[%emt 0:0:7]} 18. Rfc1 {[%emt 0:2:23]} f6 {[%emt 0:2:42]} 19. e3 {[%emt 0:2:44]} h6 {[%emt 0:6:29]} 20. a4 {[%emt 0:1:19]} a5 {[%emt 0:5:21]} 21. Rab1 {[%emt 0:5:19]} Rb6 {[%emt 0:4:25]} 22. Nc5 {[%emt 0:4:4]} Bf7 {[%emt 0:0:23]} 23. Rd1 {[%emt 0:1:59]} Rdd6 {[%emt 0:3:28]} 24. h3 {[%emt 0:3:47]} Kf8 {[%emt 0:1:43]} 25. Rdc1 {[%emt 0:2:7]} Ke7 {[%emt 0:1:24]} 26. Ra1 {[%emt 0:3:43]} Rb4 {[%emt 0:9:17]} 27. Rc2 {[%emt 0:2:15]} Rdb6 {[%emt 0:1:37]} 28. Rac1 {[%emt 0:2:17]} Rb1 {[%emt 0:1:14]} 29. Bf1 {[%emt 0:1:34]} Ne5 {[%emt 0:5:0]} 30. f4 {[%emt 0:1:47]} Nf3+ {[%emt 0:0:58]} 31. Kf2 {[%emt 0:0:23]} Rxc1 {[%emt 0:0:4]} 32. Rxc1 {[%emt 0:0:3]} Nd2 {[%emt 0:0:8]} 33. Be2 {[%emt 0:9:6]} c6 {[%emt 0:12:5]} 34. Rd1 {[%emt 0:4:43]} Rb2 {[%emt 0:0:26]} 35. Ke1 {[%emt 0:0:12]} Rc2 $1 {[%emt 0:0:13]} 36. Rxd2 {[%emt 0:1:9]} Rxc5 {[%emt 0:0:9]} 37. Rb2 {[%emt 0:0:9]} Be6 {[%emt 0:1:42]} 38. Rb7+ {[%emt 0:1:51]} Kf8 {[%emt 0:0:38]} 39. g4 {[%emt 0:6:0]} f5 {[%emt 0:0:1]} 40. Kd2 {[%emt 0:3:5]} Rd5+ {[%emt 0:0:24]} 41. Kc3 {[%emt 0:50:5]} Rc5+ {[%emt 0:50:5]} 42. Kd2 {[%emt 0:1:18]} g5 {[%emt 0:17:36]} 43. Rh7 {[%emt 0:3:35]} gxf4 {[%emt 0:0:57]} (43... Rd5+ $11 44. Kc3 Rc5+ 45. Kb2 fxg4 46. hxg4 (46. Bxg4 Bxg4 47. hxg4 gxf4 $11 )(46. Rxh6 g3 $17 )Bc4 )44. exf4 $16 {[%emt 0:0:20]} fxg4 {[%emt 0:0:15]} (44... Bb3 $142 )45. hxg4 {[%emt 0:0:23]} Bb3 {[%emt 0:0:21]} 46. Rxh6 {[%emt 0:0:0]} Bxa4 {[%emt 0:0:0]} 47. Rh8+ {[%emt 0:0:0]} (47. Bf3 $16 )Ke7 {[%emt 0:0:0]} 48. Rh7+ {[%emt 0:0:0]} (48. Ra8 $16 )Kd6 {[%emt 0:0:0]} 49. g5 {[%emt 0:2:35]} Bb3 {[%emt 0:0:0]} 50. Bd3 {[%emt 0:0:0]} a4 {[%emt 0:0:0]} 51. Ra7 {[%emt 0:0:32]} Rd5 {[%emt 0:0:0]} 52. Kc3 {[%emt 0:0:0]} ({White should play} 52. Ke3 $16 )Rc5+ $11 {[%emt 0:0:0]} 53. Kd2 {[%emt 0:0:0]} (53. Kd4 $11 )Rd5 $14 {[%emt 0:0:10]} 54. Ke3 {[%emt 0:0:0]} Kc5 {[%emt 0:0:0]} 55. g6 {[%emt 0:0:0]} (55. f5 $1 $14 )Kb6 {[%emt 0:0:0]} (55... Rd8 $1 $11 )56. Ra6+ $1 $14 {[%emt 0:1:32]} Kb7 $1 {[%emt 0:0:57]} 57. f5 {[%emt 0:0:0]} Re5+ {[%emt 0:0:0]} (57... Rxd3+ $2 58. Kxd3 Kxa6 59. f6 $18 )(57... Rd8 $1 $14 )58. Kf4 {[%emt 0:4:22]} Rd5 {[%emt 0:0:1]} 59. Ke3 {[%emt 0:0:8]} (59. Be2 $14 )Rd8 $2 {[%emt 0:0:0] [#]} (59... Rxd3+ 60. Kxd3 Ba2 (60... Kxa6 $2 {loses.} 61. f6 $18 )61. Ra5 $18 (61. Rxa4 Bb1+ 62. Kd4 Bxf5 $18 ))(59... Re5+ $1 $11 {and Black has nothing to worry.} 60. Kf4 Rd5 )60. f6 {[%emt 0:1:28]} (60. Ke4 $1 $18 )Rf8 $1 $14 {[%emt 0:0:42]} (60... Rxd3+ 61. Kxd3 Kxa6 62. f7 $18 )61. g7 {[%emt 0:5:52]} (61. f7 $14 )Rxf6 $11 {[%emt 0:15:40]} 62. Rxa4 {[%emt 0:0:3]} Bg8 $1 {[%emt 0:1:31]} 63. Rf4 {[%emt 0:0:4]} Rxf4 {[%emt 0:2:56]} 64. Kxf4 {[%emt 0:0:4]} c5 {[%emt 0:0:3]} 65. Ke5 {[%emt 0:1:34]} Kc7 {[%emt 0:0:30]} 66. Be4 {[%emt 0:0:11]} (66. Bf5 $5 c4 $8 67. Bh3 $11 )c4 $1 {[%emt 0:0:30]} 67. Bd5 {[%emt 0:0:30]} c3 $1 {[%emt 0:0:11]} 68. Bxg8 {[%emt 0:0:5]} c2 {[%emt 0:0:3]} 69. Bb3 {[%emt 0:0:4]} c1=Q {[%emt 0:0:5]} 70. g8=Q {[%emt 0:0:3]} 1/2-1/2

[Event "87th Tata Steel Masters 2025"]
[White "Abdusattorov,Nodirbek"]
[Black "Wei,Yi"]
[Site "Wijk aan Zee"]
[Round "4.4"]
[Annotator "TA"]
[Result "1/2-1/2"]
[Date "2025.01.21"]
[WhiteElo "2768"]
[BlackElo "2751"]
[PlyCount "82"]
[TimeControl "60"]

{[%evp 10,82,-6,-23,-16,-28,-25,-41,-30,-16,-21,-38,-39,-39,-50,-36,-39,-71,-7,-1,96,-80,-86,-85,-91,-94,-89,-79,-71,-93,-67,-86,-19,-65,-71,-62,-83,-74,-66,-63,-37,-34,-12,-20,-7,-16,-9,-9,-12,-12,0,0,0,0,0,-10,-20,-13,-9,-12,-8,-11,0,0,0,-16,0,0,0,0,0,0,0,0,6]} 1. d4 {[%emt 0:0:12]} Nf6 {[%emt 0:0:12]} 2. c4 {[%emt 0:0:11]} e6 {[%emt 0:0:15]} 3. Nc3 {[%emt 0:0:23]} Bb4 {[%emt 0:0:10]} 4. a3 {[%emt 0:0:21]} Bxc3+ {[%emt 0:0:10]} 5. bxc3 {[%emt 0:0:4]} b6 {[%emt 0:1:11]} 6. f3 {[%emt 0:0:28]} Nc6 {[%emt 0:0:21]} 7. e4 {[%emt 0:0:14]} Na5 {[%emt 0:0:19]} 8. Bd3 {[%emt 0:0:46]} Ba6 {[%emt 0:1:56]} 9. Qe2 {[%emt 0:0:27]} c5 {[%emt 0:0:41]} 10. Nh3 {[%emt 0:0:12]} cxd4 {[%emt 0:0:57]} 11. cxd4 {[%emt 0:0:8]} Rc8 {[%emt 0:2:19][%cal Ra6c4]} 12. e5 {[%emt 0:19:39]} Ng8 $1 {[%emt 0:0:23][%cal Yg8e7]} 13. Nf2 {[%emt 0:0:44] [#]} d5 {[%emt 0:19:56] Dodges Ne4} (13... Bxc4 14. Ne4 $14 )(13... f5 $1 $17 )14. exd6 $11 {[%emt 0:20:27][%cal Yc4c5] Strongly threatening c5!.} Nf6 {[%emt 0:3:14]} (14... Qxd6 15. Ne4 Qd7 16. c5 Bxd3 (16... Qxd4 $2 17. Bxa6 Qxa1 18. O-O $18 )17. Qxd3 bxc5 18. Bf4 $16 (18. Nxc5 $2 Rxc5 19. a4 Ne7 $19 ))(14... Bxc4 $11 {keeps the balance.} 15. Ne4 Bxd3 16. Qxd3 f5 )15. Bf4 $2 {[%emt 0:6:40] White is more active.} (15. c5 $1 $16 {is necessary to keep the advantage.} Bxd3 16. Qxd3 (16. Nxd3 Nb3 $11 ))Bxc4 $17 {[%emt 0:6:17]} 16. O-O {[%emt 0:0:15]} O-O {[%emt 0:22:1]} 17. Rac1 {[%emt 0:0:29][%cal Rd3c4]} Nd5 {[%emt 0:16:28]} 18. Bg3 {[%emt 0:3:4]} Bxd3 {[%emt 0:5:22]} 19. Qxd3 {[%emt 0:13:11]} Nb7 {[%emt 0:0:23]} 20. Ne4 {[%emt 0:2:15]} f5 {[%emt 0:11:22]} ({Black should play} 20... Qd7 $17 21. Ng5 g6 22. Rxc8 Rxc8 )21. Nc3 {[%emt 0:6:53]} (21. Qa6 $1 $11 Qd7 22. Rxc8 Rxc8 23. Qxa7 )Nxc3 $15 {[%emt 0:0:47]} 22. Rxc3 {[%emt 0:0:9]} Rxc3 {[%emt 0:3:40]} 23. Qxc3 {[%emt 0:0:2]} f4 {[%emt 0:0:5]} 24. Bf2 {[%emt 0:0:30]} Qxd6 {[%emt 0:0:4]} 25. Rc1 {[%emt 0:1:46]} h6 {[%emt 0:1:47]} 26. h3 {[%emt 0:3:54]} Na5 {[%emt 0:4:53]} 27. Kh2 {[%emt 0:3:43]} Qd5 {[%emt 0:0:17]} 28. Qc7 {[%emt 0:0:56]} Rf7 {[%emt 0:1:46]} 29. Qc8+ {[%emt 0:0:32]} Rf8 {[%emt 0:0:4]} 30. Qc7 {[%emt 0:0:5]} Rf7 {[%emt 0:5:20]} 31. Qc8+ {[%emt 0:0:5]} Kh7 {[%emt 0:0:4]} 32. Re1 {[%emt 0:4:22]} Qd7 {[%emt 0:0:7]} 33. Qxd7 {[%emt 0:1:36]} Rxd7 {[%emt 0:0:3]} 34. Rxe6 $11 {[%emt 0:0:7][%mdl 4096] Endgame KRB-KRN} Nc4 {[%emt 0:0:3]} 35. a4 {[%emt 0:0:40]} Nb2 {[%emt 0:0:14]} 36. a5 $1 {[%emt 0:0:30]} Nd3 {[%emt 0:3:19]} 37. Bg1 $1 {[%emt 0:4:36]} bxa5 {[%emt 0:1:47]} 38. Ra6 {[%emt 0:0:19]} Rd5 {[%emt 0:0:26]} 39. h4 {[%emt 0:4:12]} Nb4 {[%emt 0:0:45]} 40. Rxa7 {[%emt 0:0:26]} Kg6 {[%emt 0:0:30]} 41. g4 {[%emt 0:53:9]} fxg3+ {[%emt 0:7:30]} 1/2-1/2